Cogmind - Beta 16.1 @@@ ROGUE MODE // 2026.04.16 @ 02:31:14 Player: Thqwib-Linux Result: Self-destructed Performance ------------- Evolutions (7) 3500 Regions Visited (26) 5200 Robots Destroyed (485) 2425 Value Destroyed (20944) 20944 Prototype IDs (77) 1540 Alien Tech Used (2) 400 Bonus (10813) 10813 TOTAL SCORE: 44822 Bonus ------- Triggered High Security 500 High Alert Combat Kills 4361 Follower Combat Kills 1508 Hunted by Unchained 500 Entered Garrisons 400 Aligned with FarCom 300 Acquired ECA 300 Met Zhirov 300 Built Enhanced Grunts 300 Met R17 at Cetus 500 Met R17 at Research 2000 Friendly Fire -156 Cogmind --------- Core Integrity 1260/1300 Matter 175/300 Energy 39/410 System Corruption 4% Temperature Cool (49) Movement Hovering (124) Ox1 Location -3/Research Parts ------- > --- POWER (2) -------- Light Antimatter Reactor Particle Reactor > --- PROPULSION (6) --- Improved Gyrokinetic Inverter Combat Antigrav System Antigrav Array Combat Linear Gravjet Combat Linear Gravjet > --- UTILITY (9) ------ Advanced Heat Sink Medium Storage Unit Advanced Targeting Computer Core Analyzer Core Analyzer Quantum Capacitor Layered Medium Armor Plating Centrium Medium Armor Plating > --- WEAPON (4) ------- Compact HERF Cannon Compact HERF Cannon Smartbomb Launcher > --- INVENTORY (10) --- Micro Antimatter Reactor Advanced Heat Sink Experimental Terrain Scan Processor Improved Reaction Control System Improved Phase Shifter Graphene Brace Advanced Shield Generator Authchip [Propulsion] Improved Plasma Cutter Lance Peak State ------------ > --- POWER ------------ Light Antimatter Reactor Particle Reactor > --- PROPULSION ------- Combat Antigrav System Combat Linear Gravjet Combat Linear Gravjet Combat Linear Gravjet Combat Linear Gravjet Combat Linear Gravjet > --- UTILITY ---------- Advanced Heat Sink Medium Storage Unit Advanced Targeting Computer Core Analyzer Improved Armor Integrity Analyzer Improved Phase Shifter Layered Medium Armor Plating Graphene Brace Advanced Shield Generator > --- WEAPON ----------- Enhanced Nova Cannon Railgun Smartbomb Launcher > --- INVENTORY -------- Light Antimatter Reactor Advanced Heat Sink Core Analyzer Experimental Thermal Shield Authchip [Propulsion] Coil Gun Improved Plasma Cutter [Rating: 147] Favorites ----------- Power Cooled Ion Engine Engine Cooled Ion Engine Power Core Neutrino Core Reactor Light Antimatter Reactor Propulsion Advanced Treads Treads Advanced Treads Leg Flexi-carbon Leg Wheel Compact Wheel Hover Unit Combat Linear Gravjet Utility Huge Storage Unit Device Improved Cooling System Storage Huge Storage Unit Processor Core Analyzer Hackware Improved Hacking Suite Protection Centrium Medium Armor Plating Weapon Advanced KE Penetrator Energy Gun Gatling Laser Energy Cannon Neutron Cannon Ballistic Gun Advanced KE Penetrator Ballistic Cannon Bore Cannon Launcher Smartbomb Launcher Special Weapon CPS Tube Build | -11 -10 -10 -9 -9 -9 -8 -8 -8 -8 -8 -8 -8 -8 -6 -6 -6 -6 -6 -5 -5 -5 -5 -4 -4 -4 -3 ------- Run | Yrd Mat Min Mat Min Exi Min Mat Gar Mat Sto Gar Rec Scr Fac Ext Cet Arc Hub Fac Upp Upp Zhi Pro Fac Arm Res Slots Evolved 14 | . . . 2 . . . 2 . . . . . . 4 . . . . 2 . . . . 2 . 2 Power 1 | . . . . . . . . . . . . . . . . . . . . . . . . 1 . . Propulsion 4 | . . . 1 . . . . . . . . . . 1 . . . . 2 . . . . . . . Utility 7 | . . . . . . . 2 . . . . . . 3 . . . . . . . . . . . 2 Weapon 2 | . . . 1 . . . . . . . . . . . . . . . . . . . . 1 . . Parts Attached 330 | 3 17 9 12 2 . . 20 11 10 14 6 3 . 9 23 17 . . 27 4 7 2 2 39 61 32 Power 40 | . 6 1 1 . . . 2 . . 1 . . . 1 2 2 . . 4 . . . 1 6 8 5 Engine 20 | . 6 1 1 . . . 2 . . 1 . . . 1 2 1 . . 2 . . . 1 . 2 . Core 5 | . . . . . . . . . . . . . . . . . . . 1 . . . . 1 3 . Reactor 15 | . . . . . . . . . . . . . . . . 1 . . 1 . . . . 5 3 5 Propulsion 85 | 2 3 3 2 2 . . 8 2 4 7 1 3 . 4 5 2 . . 9 . . . . 8 15 5 Treads 30 | 1 1 . 1 . . . 1 2 2 5 1 2 . . 3 2 . . 6 . . . . 3 . . Leg 15 | . . 1 . . . . . . . . . . . . . . . . . . . . . 5 9 . Wheel 29 | 1 2 2 1 2 . . 7 . 2 2 . 1 . 4 2 . . . 3 . . . . . . . Hover 11 | . . . . . . . . . . . . . . . . . . . . . . . . . 6 5 Flight . | . . . . . . . . . . . . . . . . . . . . . . . . . . . Utility 113 | 1 6 . 2 . . . 7 4 2 5 2 . . 3 11 6 . . 7 4 3 2 1 12 17 18 Device 49 | 1 2 . 1 . . . 3 1 1 2 1 . . . 4 1 . . 2 2 3 1 . 7 10 7 Storage 10 | . 3 . 1 . . . . . . . . . . . . . . . 1 . . . . 1 1 3 Processor 17 | . 1 . . . . . 1 . . 1 . . . 2 1 . . . 2 1 . . . 2 1 5 Hackware 6 | . . . . . . . 1 . . . . . . 1 1 1 . . . . . . . 1 1 . Protection 31 | . . . . . . . 2 3 1 2 1 . . . 5 4 . . 2 1 . 1 1 1 4 3 Artifact . | . . . . . . . . . . . . . . . . . . . . . . . . . . . Weapon 92 | . 2 5 7 . . . 3 5 4 1 3 . . 1 5 7 . . 7 . 4 . . 13 21 4 Energy Gun 16 | . 1 1 . . . . 2 1 3 1 . . . . 1 . . . . . . . . . 6 . Energy Cannon 8 | . . . . . . . 1 1 1 . . . . . . 1 . . . . . . . 1 1 2 Ballistic Gun 47 | . 1 1 6 . . . . 2 . . 3 . . . 1 4 . . 6 . 1 . . 12 9 1 Ballistic Cannon 10 | . . 1 . . . . . . . . . . . 1 3 . . . . . 3 . . . 2 . Launcher 8 | . . 2 1 . . . . 1 . . . . . . . . . . 1 . . . . . 2 1 Special Weapon 3 | . . . . . . . . . . . . . . . . 2 . . . . . . . . 1 . Impact Weapon . | . . . . . . . . . . . . . . . . . . . . . . . . . . . Slashing Weapon . | . . . . . . . . . . . . . . . . . . . . . . . . . . . Piercing Weapon . | . . . . . . . . . . . . . . . . . . . . . . . . . . . Special Melee Weapon . | . . . . . . . . . . . . . . . . . . . . . . . . . . . Unidentified Prototypes 27 | . . . . . . . 1 . 1 1 . . . 1 . 5 . . 5 . . 3 . 1 4 5 Parts Lost 92 | . 3 8 . . . . 4 2 . 4 2 1 . 2 8 2 . . 3 2 3 . 2 10 33 3 Power 10 | . 1 1 . . . . . . . 1 . . . 1 . . . . . . . . 1 . 5 . Propulsion 23 | . 1 3 . . . . 3 2 . . 1 1 . 1 2 . . . 1 . . . . 2 6 . Utility 26 | . 1 . . . . . 1 . . 2 . . . . 2 2 . . 1 2 1 . 1 3 8 2 Weapon 33 | . . 4 . . . . . . . 1 1 . . . 4 . . . 1 . 2 . . 5 14 1 Highest Loss Streak 13 | . 2 5 . . . . 2 1 . 2 1 1 . 1 4 2 . . 2 1 3 . 2 3 13 3 To Critical Strikes 1 | . . . . . . . . . . . . . . . . . . . . . . . . 1 . . Average Backups 20 | 5 7 5 9 14 15 16 16 19 22 23 23 23 24 22 22 21 22 22 23 23 20 22 22 22 21 6 Power 1 | 1 . . . 1 1 2 1 1 1 . 1 1 1 . 1 2 2 2 1 1 1 1 . 1 1 . Propulsion 1 | 2 1 . . 1 2 2 1 1 2 3 3 2 3 3 2 . 1 1 . 1 1 1 1 . 2 . Utility 9 | . 2 2 3 5 4 5 4 7 9 10 10 11 11 10 10 12 11 11 11 12 10 12 12 12 9 4 Weapon 7 | 1 2 2 4 7 7 7 8 9 10 8 8 8 7 6 6 6 8 8 9 8 6 7 5 5 6 . Tool/Special . | . . . . . . . . . . . . . . . . . . . . . . . . . . . Unused Backups 81 | 2 6 1 2 1 . 1 8 4 8 2 1 . 2 4 6 5 1 . 7 . . . 1 5 8 6 Power 13 | . 4 . . . . . 4 . . . . . . . 1 1 . . 2 . . . . 1 . . Propulsion 21 | 2 . . 1 . . 1 4 4 4 1 . . . 1 . 1 . . . . . . . . 1 1 Utility 26 | . . 1 1 1 . . . . 1 . 1 . 1 2 4 3 1 . 1 . . . . 2 3 4 Weapon 21 | . 2 . . . . . . . 3 1 . . 1 1 1 . . . 4 . . . 1 2 4 1 Tool/Special . | . . . . . . . . . . . . . . . . . . . . . . . . . . . Average Slot Usage (%) 93 | . 97 80 96 100 100 100 98 100 99 99 97 90 90 92 98 87 86 86 82 93 93 78 93 91 95 86 Engine 6 | . 12 14 11 11 11 11 9 9 9 9 9 9 9 5 6 5 . . 1 5 5 5 5 4 3 . Reactor 1 | . . . . . . . . . . . . . . . . . 6 6 2 . . . . 4 5 8 Treads 14 | . 14 8 8 11 11 11 8 19 18 9 14 18 18 12 12 7 6 6 11 29 28 29 29 21 . . Leg 2 | . . 1 . . . . . . . . . . . . . . . . . . . . . 2 25 . Wheel 7 | . 14 8 22 22 22 22 17 7 8 17 12 8 9 13 13 6 6 6 5 . . . . . . . Device 8 | . 7 14 11 11 11 11 8 7 8 8 7 . . 5 9 13 13 13 9 9 14 10 11 8 8 16 Storage 7 | . 14 8 11 11 11 11 9 9 9 9 9 9 9 6 6 6 6 6 5 5 5 5 5 5 4 2 Processor 10 | . 6 . . . . . 7 9 9 9 9 9 9 12 12 6 6 6 8 11 11 11 11 14 20 13 Hackware 1 | . . . . . . . 1 . . . . . . 5 6 4 6 6 5 5 . . . . . . Protection 6 | . . . . . . . 9 10 9 9 8 9 9 6 7 13 13 13 8 4 6 11 10 5 1 3 Energy Gun 1 | . 13 9 . . . . . . 9 . . . . . 3 3 . . . . . . . . . . Energy Cannon 2 | . . . . . . . . 2 . 8 7 . . . . 5 6 6 . 4 3 . 3 3 1 2 Ballistic Gun 15 | . 14 8 29 33 33 33 25 21 17 17 18 26 27 16 7 8 13 13 15 11 6 . . 11 17 7 Ballistic Cannon 2 | . . 1 1 . . . . 2 . . . . . 3 7 . . . . . 6 2 12 5 . . Peak Build Rating 147 | 7 8 11 21 21 22 22 30 36 38 39 41 43 39 57 71 102 102 105 126 105 115 111 120 136 142 147 Average Rating 73 | 6 7 6 16 20 21 22 27 32 36 36 38 38 38 52 59 85 102 104 114 103 110 93 115 124 123 132 On Entrance 57 | 6 7 8 11 21 21 22 22 29 29 36 37 41 39 39 54 71 102 102 105 101 104 113 111 120 96 118 Avg Prop Armor Cover (%) 10 | 3 13 14 7 8 8 8 8 11 12 6 9 9 9 8 10 9 11 11 14 . . . . 8 9 . Naked Turns . | . . . . . . . . . . . . . . . . . . . . . . . . . . . Heaviest Build 164 | 12 30 34 40 37 97 97 108 106 110 115 122 122 115 120 123 137 137 137 133 118 140 140 141 164 147 85 Greatest Support 207 | 20 20 20 20 20 20 20 32 62 62 48 32 66 16 44 60 80 28 28 204 194 194 194 194 207 165 86 Greatest Overweight (x) 12 | . 1 3 1 1 4 4 10 10 6 6 7 7 7 4 4 4 4 4 12 . . . . 1 2 1 Average Overweight (x) 2 | . . 1 1 1 3 4 4 4 5 3 5 6 7 3 3 3 4 4 3 . . . . . . . Largest Inventory Capacity 25 | 8 25 15 15 15 25 25 25 25 25 25 25 25 25 25 25 25 25 25 25 25 25 25 25 25 25 10 Average Capacity 23 | 8 11 11 15 15 24 25 25 25 25 25 25 25 25 25 25 25 25 25 25 25 25 25 25 25 24 8 Most Carried 25 | 8 9 7 15 15 16 17 21 22 25 25 25 25 25 25 25 25 25 24 25 25 24 25 25 25 25 10 Average Carried 21 | 5 7 5 9 14 15 16 17 20 23 24 24 24 24 23 23 22 24 24 24 24 21 24 23 23 21 6 Final Capacity 25 | 8 15 15 15 15 25 25 25 25 25 25 25 25 25 25 25 25 25 25 25 25 25 25 25 25 5 10 Final Carried 25 | 5 7 4 15 15 16 16 20 20 25 25 25 25 25 24 25 25 24 24 25 24 24 25 22 24 3 10 Class Distribution -------------------- 31% | Scavenger-Tank 18% | Scavenger-Gunner 16% | Scavenger-Skirmisher 11% | Skirmisher 8% | Tank 4% | Gunner 3% | Mutant 3% | Scavenger-Mutant Dominant Class ---------------- Scavenger-Mutant | -10/Materials Scavenger-Mutant | -10/Mines Scavenger-Gunner | -9/Materials Scavenger-Gunner | -9/Mines Scavenger-Gunner | -9/Exiles Scavenger-Skirmisher | -8/Mines Scavenger-Skirmisher | -8/Materials Scavenger-Tank | -8/Garrison Skirmisher | -8/Materials Skirmisher | -8/Storage Skirmisher | -8/Garrison Scavenger-Skirmisher | -8/Recycling Scavenger-Gunner | -8/Scraptown Scavenger-Skirmisher | -6/Factory Scavenger-Tank | -6/Extension Scavenger-Tank | -6/Cetus Scavenger-Tank | -6/Archives Scavenger-Tank | -6/Hub_04(d) Scavenger-Tank | -5/Factory Tank | -5/Upper Caves Tank | -5/Upper Caves Mutant | -5/Zhirov Scavenger-Tank | -4/Proximity Caves Gunner | -4/Factory Scavenger-Gunner | -4/Armory Scavenger-Gunner | -3/Research Resources | -11 -10 -10 -9 -9 -9 -8 -8 -8 -8 -8 -8 -8 -8 -6 -6 -6 -6 -6 -5 -5 -5 -5 -4 -4 -4 -3 ----------- Run | Yrd Mat Min Mat Min Exi Min Mat Gar Mat Sto Gar Rec Scr Fac Ext Cet Arc Hub Fac Upp Upp Zhi Pro Fac Arm Res Matter Collected 16506 | 246 327 210 647 38 . 19 1019 698 644 724 332 324 9 285 1397 292 . 72 1838 321 521 . 453 2732 2726 632 Remotely 3658 | . . . . . . . 29 . . . . . . . . . . . . . 187 . 379 1639 1424 . Salvage Created 24066 | 79 988 263 779 39 . 30 1535 1089 1030 1440 615 752 . 525 1857 477 . 186 4510 40 338 . 351 3888 2302 953 Parts 1134 | 6 45 13 44 4 . 1 94 58 48 78 29 18 . 24 58 31 . 5 197 5 8 . 19 192 115 42 Haulers Intercepted 37 | . 2 . 2 . . . 4 . 5 5 . . . 1 4 . . . 8 . . . . 3 . 3 Recyclers Shooed 22 | . 4 1 2 . . . . . 1 1 . 2 . 1 3 . . 1 5 . . . . 1 . . Parts Field Recycled . | . . . . . . . . . . . . . . . . . . . . . . . . . . . Retrieved Matter . | . . . . . . . . . . . . . . . . . . . . . . . . . . . Parts Self-Destructed 27 | . . . . . . . . . . . . . . . . . . . . 4 7 . 16 . . . Prevented 1 | . . . . . . . . . . . . . . . . . . . . 1 . . . . . . Parts Restored . | . . . . . . . . . . . . . . . . . . . . . . . . . . . Kills | -11 -10 -10 -9 -9 -9 -8 -8 -8 -8 -8 -8 -8 -8 -6 -6 -6 -6 -6 -5 -5 -5 -5 -4 -4 -4 -3 ------- Run | Yrd Mat Min Mat Min Exi Min Mat Gar Mat Sto Gar Rec Scr Fac Ext Cet Arc Hub Fac Upp Upp Zhi Pro Fac Arm Res Combat Hostiles Destroyed 352 | . 17 14 12 . . . 26 23 14 18 20 2 . 5 21 7 . . 54 4 4 . 11 52 41 7 Guns 236 | . 16 5 9 . . . 21 20 14 13 4 1 . 1 10 6 . . 53 . 1 . . 26 34 2 Cannons 66 | . . . . . . . . 2 . 5 7 1 . 4 11 . . . 1 1 3 . 6 18 5 2 AOE 46 | . . 9 3 . . . 5 1 . . 9 . . . . . . . . 3 . . 5 7 2 2 Classes Destroyed 25 | 2 4 3 3 . . . 2 2 . 2 1 . . . 1 . . . 2 . . . 1 1 . 1 Worker 32 | . . 1 3 2 . 1 6 . . . . . . . 1 . . 1 8 . . . . 7 . 2 Builder 19 | . . 1 1 . . . . . 1 2 . . . . . . . . 4 . . . . 7 . 3 Tunneler 6 | 1 . . . . . . 3 . . . . . . . 1 . . . 1 . . . . . . . Hauler 37 | . 2 . 2 . . . 4 . 5 5 . . . 1 4 . . . 8 . . . . 3 . 3 Recycler 32 | 1 3 1 2 . . . 1 . 2 4 . 9 . 1 2 . . 1 2 . . . . 2 . 1 Mechanic 1 | . . . . . . . . . . . . . . . . . . . 1 . . . . . . . Operator 5 | . 1 . . . . . . . 2 . . . . . . . . . 2 . . . . . . . Drone 2 | . . . . . . . . . . . . . . . . . . . . . . . 2 . . . Watcher 10 | . . . 1 . . . 2 1 1 . . . . . 1 1 . 1 1 . . . . . 1 . Swarmer 48 | . 3 . . . . . 7 . 5 2 7 . . . 1 . . . 8 4 . . 4 1 5 1 Cutter 3 | . . . . . . . . 3 . . . . . . . . . . . . . . . . . . Saboteur 3 | . . . . . . . . . . . . . . . . . . . . . . . . 2 1 . Grunt 138 | . 14 4 8 . . . 10 8 5 7 8 . . 2 7 1 . . 24 . . . . 20 17 3 Brawler 6 | . . . 1 . . . . . . . . . . . 1 . . . 2 . . . . 1 1 . Duelist 12 | . . . . . . . . 2 2 1 . . . . . . . . 3 . . . 2 . 2 . Protector 1 | . . . . . . . . . . 1 . . . . . . . . . . . . . . . . Sentry 43 | . . . 3 . . . 6 8 2 5 1 2 . . 7 . . . 2 . 2 . 1 3 1 . Demolisher 4 | . . . . . . . . . . 2 . . . . . . . . . . . . . . 2 . Specialist 6 | . . . . . . . . . . . . . . . . . . . 2 . . . . 2 2 . Hunter 26 | . . . . . . . 2 2 . . 2 . . 2 3 . . . 5 . 1 . . 6 1 2 Programmer 39 | . . . . . . . . . . . 2 . . 1 . . . . 8 . . . 2 17 9 . Heavy 1 | . . . . . . . 1 . . . . . . . . . . . . . . . . . . . Behemoth 2 | . . . . . . . . . . . . . . . 1 . . . . . 1 . . . . . Cetus Guard 6 | . . . . . . . . . . . . . . . . 6 . . . . . . . . . . Striker 1 | . . . . . . . . . . . . . . . . . . . . . . . . . . 1 Assembled 10 | . . 10 . . . . . . . . . . . . . . . . . . . . . . . . Thug 1 | . . . . . . . . . . . . . . . 1 . . . . . . . . . . . Savage 1 | . . . . . . . . . . . . . . . 1 . . . . . . . . . . . Best Kill Streak 16 | 1 3 5 7 2 . 1 6 3 5 4 4 9 . 5 3 4 . 1 12 4 2 . 5 16 5 7 Combat Bots Only 10 | . 3 5 5 . . . 4 3 4 4 4 1 . 5 3 4 . . 9 4 2 . 5 10 5 2 Max Kills in Single Turn 5 | 1 1 2 2 1 . 1 3 2 2 1 3 1 . 1 2 1 . 1 2 3 1 . 5 3 2 3 Gunslinging 1 | . . . 1 . . . . . . . . . . . . . . . . . . . . 1 1 . Exploded 5 | . . 2 1 . . . 3 1 . . 3 . . . . . . . . 3 . . 5 2 2 2 Melee . | . . . . . . . . . . . . . . . . . . . . . . . . . . . Uniques/NPCs Destroyed . | . . . . . . . . . . . . . . . . . . . . . . . . . . . Combat | -11 -10 -10 -9 -9 -9 -8 -8 -8 -8 -8 -8 -8 -8 -6 -6 -6 -6 -6 -5 -5 -5 -5 -4 -4 -4 -3 -------- Run | Yrd Mat Min Mat Min Exi Min Mat Gar Mat Sto Gar Rec Scr Fac Ext Cet Arc Hub Fac Upp Upp Zhi Pro Fac Arm Res Hostile Shots Fired 2001 | . 70 32 28 . . . 81 72 46 74 50 10 . 62 223 59 . 12 257 26 55 . 50 336 381 77 Missed 571 | . 22 3 8 . . . 23 13 11 16 12 1 . 27 85 15 . 6 44 8 10 . 16 83 133 35 Hits 1430 | . 48 29 20 . . . 58 59 35 58 38 9 . 35 138 44 . 6 213 18 45 . 34 253 248 42 Melee 78 | . . 5 . . . . . 8 2 1 . . . . 3 . . . 14 . . . 10 1 34 . Projectile 1352 | . 48 24 20 . . . 58 51 33 57 38 9 . 35 135 44 . 6 199 18 45 . 24 252 214 42 AOE 19 | . . . . . . . . . . 5 . . . . . . . . 1 . . . . 3 10 . Critical Strikes 73 | . . 1 1 . . . 5 4 3 1 . . . . 2 5 . . 15 . 2 . 4 15 10 5 Actively Blocked 22 | . . . . . . . . 4 . . . . . . . 1 . . 8 . 1 . . . 3 5 Part Disruptions 4 | . . . . . . . . . . . . . . . . . . . 2 . . . . 1 1 . Damage Taken 28147 | . 644 647 279 . . . 967 925 500 1052 586 132 . 608 1824 893 . 129 4065 312 928 . 915 4901 7101 739 Core 2465 | . 126 111 62 . . . 126 63 72 78 79 . . 16 161 55 . 18 328 20 91 . 112 250 657 40 Absorbed by Shields 2064 | . . . . . . . . . . 4 . . . . 221 307 . . 156 . 16 . . 1047 200 113 Reduced by Siege Mode 488 | . . . . . . . . . . . . . . . . 28 . . 253 . 47 . 9 151 . . Redirected to Shielding 213 | . . . . . . . . . . . . . . . . 21 . . 32 . . . . . 80 80 Ignored by Resistances 66 | . . . . . . . . . . . . . . . . . . . . . . . . . 66 . Regen/Repaired (Parts) 1374 | . 60 . . . . . 285 . 70 78 . . . . . . . . 592 . . . . 289 . . Core Remaining (%) 48 | 100 . 5 . . . 84 . . . . . . 24 . . . . 70 . . . . 44 . 12 . Volleys Fired 1114 | 7 78 33 45 2 . 1 85 84 62 73 45 19 . 20 90 21 . 9 149 9 14 . 19 108 104 37 Largest 4 | 2 2 2 3 3 . 3 3 3 3 3 3 3 . 3 3 3 . 3 3 3 3 . 3 4 4 3 Hottest 265 | 60 85 100 69 69 . 69 75 121 116 149 118 111 . 86 168 173 . 160 160 146 160 . 202 265 249 185 Shots Fired 3019 | 14 156 56 125 6 . 3 237 193 184 195 94 59 . 60 268 52 . 23 436 17 43 . 51 362 316 69 Gun 2363 | 14 156 44 120 6 . 3 228 148 183 129 51 49 . 46 155 32 . 14 430 6 24 . . 232 252 41 Cannon 600 | . . 2 . . . . 6 40 1 66 33 10 . 14 113 16 . 9 6 10 19 . 50 122 60 23 Launcher 52 | . . 10 5 . . . 3 5 . . 10 . . . . . . . . 1 . . 1 8 4 5 Special 4 | . . . . . . . . . . . . . . . . 4 . . . . . . . . . . Kinetic 2397 | 7 78 22 120 6 . 3 228 159 122 120 51 49 . 60 224 26 . 14 407 6 30 . 44 302 278 41 Thermal 561 | 7 78 24 . . . . 6 29 62 75 33 10 . . 44 22 . 9 29 10 13 . 6 52 34 18 Explosive 52 | . . 10 5 . . . 3 5 . . 10 . . . . . . . . 1 . . 1 8 4 5 Electromagnetic 5 | . . . . . . . . . . . . . . . . . . . . . . . . . . 5 Robot Hit Streak 52 | 2 14 15 14 7 . 8 35 24 15 17 19 24 . 15 25 13 . 10 52 2 29 . 5 34 18 7 Robot Miss Streak 6 | 3 4 4 4 . . . 2 2 4 6 2 2 . 1 5 3 . 1 4 3 1 . 4 3 4 2 Penetration Max 2 | . . . . . . . . 1 1 . . . . . 1 1 . 1 1 . . . 1 2 1 1 Secondary Targets 31 | . 2 1 3 . . . 2 2 1 1 . . . . . . . . 6 . . . . 7 6 . Max Gunslinging Chain 1 | . 1 1 1 . . . 1 1 1 1 . . . . . . . . 1 . . . . 1 1 . Capacitor 5 | . . . . . . . . . . . . . . . . . . . . . . . . . . 5 Shots Hit Robots 1991 | 7 106 37 78 4 . 1 169 110 121 120 52 40 . 49 194 41 . 13 331 5 34 . 24 230 185 40 Core Hits 986 | 3 38 29 32 2 . 1 75 52 38 49 33 17 . 22 93 26 . 9 164 4 11 . 17 150 90 31 Critical Kills 113 | . . . . . . . 2 2 2 . 1 . . . 8 2 . 1 19 . 3 . 2 38 33 . Critical Parts Destroyed 150 | . . . . . . . 2 2 5 . . . . . 15 1 . 3 33 . 4 . 6 45 33 1 Critical Strikes 285 | . 4 1 . . . . 4 4 9 . 1 . . 1 28 3 . 4 52 . 7 . 8 85 73 1 Burn 7 | . 4 1 . . . . . . 2 . . . . . . . . . . . . . . . . . Meltdown 1 | . . . . . . . . . . . . . . . . . . . . . . . . 1 . . Destroy 272 | . . . . . . . 4 4 7 . 1 . . . 27 3 . 4 52 . 7 . 8 84 70 1 Blast 5 | . . . . . . . . . . . . . . 1 1 . . . . . . . . . 3 . Melee Attacks . | . . . . . . . . . . . . . . . . . . . . . . . . . . . Impact . | . . . . . . . . . . . . . . . . . . . . . . . . . . . Slashing . | . . . . . . . . . . . . . . . . . . . . . . . . . . . Piercing . | . . . . . . . . . . . . . . . . . . . . . . . . . . . Sneak Attacks . | . . . . . . . . . . . . . . . . . . . . . . . . . . . Combat Hostiles . | . . . . . . . . . . . . . . . . . . . . . . . . . . . Follow-up Attacks . | . . . . . . . . . . . . . . . . . . . . . . . . . . . Damage Inflicted 46779 | 86 1361 975 1649 62 . 17 2947 2078 2222 2487 1627 683 . 813 4033 1099 . 598 9457 444 912 . 911 6240 3747 2331 Guns 29701 | 86 1361 398 1184 62 . 17 2526 1710 2222 1270 412 406 . 520 2330 724 . 405 9292 19 433 . . 1928 1729 667 Cannons 9404 | . . 20 . . . . . 156 . 1205 524 277 . 293 1703 375 . 193 165 116 479 . 591 1648 1114 545 Explosions 7588 | . . 557 465 . . . 421 212 . . 691 . . . . . . . . 309 . . 320 2615 879 1119 Melee . | . . . . . . . . . . . . . . . . . . . . . . . . . . . Ramming 86 | . . . . . . . . . . 12 . . . . . . . . . . . . . 49 25 . Kinetic 29978 | 65 505 131 1184 62 . 17 2526 1816 1398 1122 412 406 . 813 3055 542 . 405 8805 19 505 . 373 2665 2485 667 Thermal 9469 | 21 856 287 . . . . . 50 824 1353 524 277 . . 978 557 . 193 652 116 407 . 218 1369 358 429 Explosive 7130 | . . 557 465 . . . 421 212 . . 691 . . . . . . . . 309 . . 320 2157 879 1119 Electromagnetic 116 | . . . . . . . . . . . . . . . . . . . . . . . . . . 116 Impact . | . . . . . . . . . . . . . . . . . . . . . . . . . . . Slashing . | . . . . . . . . . . . . . . . . . . . . . . . . . . . Piercing . | . . . . . . . . . . . . . . . . . . . . . . . . . . . Highest Corruption 23 | . 1 1 . . . . . . . . 1 1 . . 1 1 1 1 11 11 11 11 14 14 23 4 Average Corruption 5 | . 1 1 . . . . . . . . 1 1 . . 1 1 1 1 7 11 11 11 12 3 7 4 Corruption Purged 14 | . . . . . . . . . . . . . . . . . . . . . . . . 14 . . Corruption Blocked . | . . . . . . . . . . . . . . . . . . . . . . . . . . . Effects 424 | . 7 3 . . . . . . . . 11 13 . . 11 5 . 6 102 32 58 9 25 44 89 9 Message Errors 100 | . 1 1 . . . . . . . . 4 2 . . 3 2 . 1 28 4 17 1 2 13 20 1 Matter Fused 102 | . 3 1 . . . . . . . . 3 3 . . 3 1 . 1 19 13 14 2 6 14 19 . Heat Flow Errors 44 | . . . . . . . . . . . 1 2 . . 1 . . 1 11 2 7 2 5 2 8 2 Energy Discharges 56 | . 1 1 . . . . . . . . 1 3 . . 2 1 . 2 13 1 5 . 3 8 13 2 Parts Rejected 1 | . . . . . . . . . . . . . . . . . . . . . . . . . 1 . Parts Fused 7 | . . . . . . . . . . . . . . . . . . . . 1 1 . 1 2 2 . Data Loss (minor) 52 | . 1 . . . . . . . . . 2 . . . 1 1 . 1 10 5 9 2 3 3 13 1 Data Loss (major) 14 | . . . . . . . . . . . . 1 . . . . . . 5 1 1 2 1 2 1 . Misfires 18 | . . . . . . . . . . . . 2 . . . . . . 5 4 2 . . . 3 2 Alerts 11 | . 1 . . . . . . . . . . . . . . . . . 3 1 1 . 3 . 2 . Misdirections 6 | . . . . . . . . . . . . . . . . . . . 2 . . . . . 4 . Weapon Failures 13 | . . . . . . . . . . . . . . . 1 . . . 6 . 1 . 1 . 3 1 Overload Shots . | . . . . . . . . . . . . . . . . . . . . . . . . . . . Overflow Damage 436 | . . 19 . . . . 9 . . 34 43 . . . 20 . . 3 . . . . 26 263 19 . Projectiles 108 | . . . . . . . . . . 34 . . . . 20 . . 3 . . . . 8 24 19 . Explosions 317 | . . 19 . . . . 9 . . . 43 . . . . . . . . . . . 18 228 . . Melee 11 | . . . . . . . . . . . . . . . . . . . . . . . . 11 . . Knockbacks 36 | . . 1 . . . . . . . . . . . 4 9 . . . . . . . 4 6 12 . Impact 1 | . . . . . . . . . . . . . . . . . . . . . . . . 1 . . Kinetic 35 | . . 1 . . . . . . . . . . . 4 9 . . . . . . . 4 5 12 . Secondary . | . . . . . . . . . . . . . . . . . . . . . . . . . . . Self-Inflicted Damage 713 | . . 149 . . . . . . . . 72 . . . . . . . . . . . 30 450 12 . Shots 14 | . . 4 . . . . . . . . 3 . . . . . . . . . . . 1 6 . . Rammed 5 | . . . . . . . . . . 1 . . . . . . . . . . . . . 1 3 . Targets Rammed 7 | . . . . . . . . . . 1 . . . . . . . . . . . . . 3 3 . Kicked 2 | . . . . . . . . . . . . . . . . . . . . . . . . 2 . . Crushed . | . . . . . . . . . . . . . . . . . . . . . . . . . . . Highest Temperature 409 | . 324 87 14 . . . 56 135 303 145 163 360 . 3 185 97 . 110 272 125 241 178 227 264 409 157 Average Temperature 56 | . 62 28 4 . . . 22 35 121 28 35 127 . 3 29 47 . 9 89 68 88 98 69 38 79 35 Received Heat Transfer 4649 | . 264 132 126 . . . 261 261 225 375 117 45 . 45 447 126 . 36 656 99 82 . 27 575 699 51 Effects 7 | . . . . . . . . . . . . 1 . . . . . . . . . . 1 1 4 . Shutdowns 1 | . . . . . . . . . . . . . . . . . . . . . . . . . 1 . Energy Bleed 2 | . . . . . . . . . . . . . . . . . . . . . . . 1 . 1 . Interference 3 | . . . . . . . . . . . . . . . . . . . . . . . . 1 2 . Short Circuit 1 | . . . . . . . . . . . . 1 . . . . . . . . . . . . . . Siege Activations 40 | . . . . . . . . . . . . . . . . 2 . . 15 . 2 . 4 17 . . Total Turns 794 | . . . . . . . . . . . . . . . . 26 . . 357 . 55 . 35 321 . . Longest Duration 87 | . . . . . . . . . . . . . . . . 23 . . 87 . 52 . 11 63 . . Martial Activations . | . . . . . . . . . . . . . . . . . . . . . . . . . . . Shielding Activations 1 | . . . . . . . . . . . . . . . . . . . . . . . . . 1 . Total Turns 42 | . . . . . . . . . . . . . . . . . . . . . . . . . 42 . Longest Duration 42 | . . . . . . . . . . . . . . . . . . . . . . . . . 42 . Robots Disrupted . | . . . . . . . . . . . . . . . . . . . . . . . . . . . Combat Hostiles . | . . . . . . . . . . . . . . . . . . . . . . . . . . . Robots Corrupted 1 | . . . . . . . . . . . . . . . . . . . . . . . . . . 1 Combat Hostiles 1 | . . . . . . . . . . . . . . . . . . . . . . . . . . 1 Parts Fried 4 | . . . . . . . . . . . . . . . . 1 . . . . . . . . . 3 Impact Corruptions 1 | . . . . . . . . . . . . . . . . . . . . . . . . 1 . . Robots Melted 3 | . 1 . . . . . . . . . . . . . . 1 . . . . . . . 1 . . Combat Hostiles 3 | . 1 . . . . . . . . . . . . . . 1 . . . . . . . 1 . . Parts Melted 29 | . 3 4 1 . . . . . 3 4 2 . . . 4 . . . . . . . . 5 . 3 Heat Transferred 14106 | 50 2285 740 . . . . . 74 1739 1862 666 370 . . 2200 943 . . 1125 . . . . 1238 444 370 Parts Sabotaged 8 | . . . . . . . . . . . . . . . . . . . 2 . . . . 4 2 . Parts Stolen . | . . . . . . . . . . . . . . . . . . . . . . . . . . . Parts Stripped . | . . . . . . . . . . . . . . . . . . . . . . . . . . . Power Chain Reactions . | . . . . . . . . . . . . . . . . . . . . . . . . . . . Alert | -11 -10 -10 -9 -9 -9 -8 -8 -8 -8 -8 -8 -8 -8 -6 -6 -6 -6 -6 -5 -5 -5 -5 -4 -4 -4 -3 ------- Run | Yrd Mat Min Mat Min Exi Min Mat Gar Mat Sto Gar Rec Scr Fac Ext Cet Arc Hub Fac Upp Upp Zhi Pro Fac Arm Res Maximum Alert Level 5 | . . . 1 . . . 1 4 3 1 3 2 . . 1 1 . 3 5 . . . . 4 3 2 Low Security (%) 36 | 100 100 100 80 100 . 100 99 6 . 59 8 55 . 100 92 83 100 14 . . . . . . . . Level 1 16 | . . . 19 . . . . 14 . 40 9 29 . . 7 16 . 56 28 . . . . 15 . 91 Level 2 25 | . . . . . . . . 39 99 . 60 15 . . . . . 12 31 . . . . 28 46 8 Level 3 13 | . . . . . . . . 34 . . 21 . . . . . . 17 5 . . . . 28 53 . Level 4 7 | . . . . . . . . 5 . . . . . . . . . . 27 . . . . 26 . . Level 5 . | . . . . . . . . . . . . . . . . . . . 5 . . . . . . . High Security . | . . . . . . . . . . . . . . . . . . . 1 . . . . . . . Max Security . | . . . . . . . . . . . . . . . . . . . . . . . . . . . Peak Influence 1676 | 5 185 77 265 106 . 5 214 1245 708 343 993 446 . 100 247 236 68 926 1676 . . . . 1535 952 420 Initial 735 | . . 27 . 100 . . . 113 606 176 156 446 . . . 131 68 13 448 . . . . 470 735 405 Average 452 | 1 79 22 83 93 . . 91 666 576 202 570 158 . 17 75 140 56 383 803 . . . . 811 731 316 Influence Increases 14622 | 10 545 180 453 21 . 5 859 1152 531 897 857 111 . 142 911 385 . 1083 1987 120 120 . 210 2501 1185 357 Destroy 0b10 Robot/C 7460 | . 340 80 240 . . . 520 460 280 460 400 40 . 100 600 220 . 380 1080 80 80 . 180 1040 740 140 Destroy 0b10 Robot/NC 785 | 10 30 15 45 10 . 5 80 5 55 70 . 45 . 10 60 10 . 40 135 . 5 . 10 95 5 45 Destroy Leader 1398 | . 84 20 66 . . . 152 20 72 110 30 . . 32 66 10 . 96 226 10 20 . 20 216 122 26 Allied During Kill 789 | . . . . . . . . . . 146 . . . . 138 127 . 327 . . . . . . 51 . Successful Hack 340 | . 46 . 13 11 . . 21 14 9 30 16 25 . . 16 . . . 68 . . . . 57 7 7 Disable Machine 720 | . 30 . 15 . . . 30 15 60 45 30 . . . . . . 15 105 . . . . 240 90 45 Anti-Garrison Action 950 | . . . . . . . . 500 . . 300 . . . . . . 150 . . . . . . . . Destroy Structure 1235 | . . 65 29 . . . 41 93 10 21 81 1 . . 31 18 . 45 208 . . . . 388 110 94 Advance Influence 450 | . . . . . . . . . . . . . . . . . . . . . . . . 450 . . Partial Spotted 45 | . . . 15 . . . . . . . . . . . . . . . 15 . . . . . 15 . Lose Combat Pursuer 450 | . 15 . 30 . . . 15 45 45 15 . . . . . . . 30 150 30 15 . . 15 45 . Influence Decreases 14246 | 10 473 252 196 207 71 5 685 81 1357 1076 104 1104 . 142 676 450 132 205 1227 1009 714 193 177 1033 1914 753 Entered New Map 4656 | . . 45 . 157 71 . . 61 639 243 84 547 . . . 104 102 25 468 621 150 193 . 13 766 367 Time Decay 7394 | 10 443 160 196 50 . 5 486 . 568 553 . 397 . 122 426 246 30 160 729 368 534 . 157 720 678 356 Search Patrol Dispatched 200 | . . . . . . . . . . . . . . . . . . . . . . . . 200 . . Lost Part 877 | . 30 47 . . . . 40 20 . 40 20 10 . 20 70 20 . . 30 20 30 . 20 100 330 30 Lost Ally 560 | . . . . . . . . . . 240 . . . . 80 80 . 20 . . . . . . 140 . Purge Threat 559 | . . . . . . . 159 . 150 . . 150 . . 100 . . . . . . . . . . . Squads Dispatched 84 | . 5 1 1 . . . 6 . 2 3 . . . 3 2 1 . 7 17 . . . . 18 7 11 Investigation 14 | . 2 1 1 . . . 1 . . 1 . . . . . 1 . 1 . . . . . 2 . 4 Extermination 17 | . . . . . . . . . . . . . . 1 . . . . 5 . . . . 6 5 . Reinforcement 37 | . 3 . . . . . 3 . 1 . . . . 2 2 . . 4 8 . . . . 6 1 7 Assault 14 | . . . . . . . . . 1 2 . . . . . . . 2 4 . . . . 4 1 . Garrison 2 | . . . . . . . 2 . . . . . . . . . . . . . . . . . . . Intercept . | . . . . . . . . . . . . . . . . . . . . . . . . . . . Searches Triggered 2 | . . . . . . . . . . . . . . . . . . . . . . . . 2 . . Unchained Authorized 1 | . . . . . . . . . . . . . . . . . . . . . . . . . 1 . Construction Impeded 11 | . . . . . . . . . . . . . . . 1 . . 2 2 . . . . 4 . 2 Haulers Reinforced 7 | . . . . . . . . . . . . . . 1 . . . . 4 . . . . . . 2 Active Scanning Responses . | . . . . . . . . . . . . . . . . . . . . . . . . . . . Cargo Convoy Interrupts . | . . . . . . . . . . . . . . . . . . . . . . . . . . . Stealth | -11 -10 -10 -9 -9 -9 -8 -8 -8 -8 -8 -8 -8 -8 -6 -6 -6 -6 -6 -5 -5 -5 -5 -4 -4 -4 -3 --------- Run | Yrd Mat Min Mat Min Exi Min Mat Gar Mat Sto Gar Rec Scr Fac Ext Cet Arc Hub Fac Upp Upp Zhi Pro Fac Arm Res Distress Signals 39 | . 2 . 2 . . . 5 . 3 . . . . . 1 2 . 2 11 . . . . 4 2 5 Communications Jammed 37 | . . . . . . . . . . . . . . . . . . . . . . . . 37 . . Distress Signals 37 | . . . . . . . . . . . . . . . . . . . . . . . . 37 . . Times Spotted 577 | . 30 14 18 . . . 36 25 32 31 20 2 . 10 37 13 . 23 91 9 5 . 13 77 69 22 Peak Tracking Total 18 | . 5 3 5 . . . 4 4 6 7 4 1 . 3 5 5 . 5 7 4 2 . 5 7 18 11 Tactical Retreats 28 | . 1 2 1 . . . 1 2 1 1 . . . . . . . 2 8 1 1 . . 1 6 . Traps | -11 -10 -10 -9 -9 -9 -8 -8 -8 -8 -8 -8 -8 -8 -6 -6 -6 -6 -6 -5 -5 -5 -5 -4 -4 -4 -3 ------- Run | Yrd Mat Min Mat Min Exi Min Mat Gar Mat Sto Gar Rec Scr Fac Ext Cet Arc Hub Fac Upp Upp Zhi Pro Fac Arm Res Traps Triggered 29 | . 3 . 1 . . . 1 8 . 1 5 . . 1 7 . . . 1 . . . . 1 . . Indirectly . | . . . . . . . . . . . . . . . . . . . . . . . . . . . Trap Hack Attempts . | . . . . . . . . . . . . . . . . . . . . . . . . . . . Triggered . | . . . . . . . . . . . . . . . . . . . . . . . . . . . Disarmed . | . . . . . . . . . . . . . . . . . . . . . . . . . . . Reprogrammed . | . . . . . . . . . . . . . . . . . . . . . . . . . . . Reused . | . . . . . . . . . . . . . . . . . . . . . . . . . . . Traps Extracted . | . . . . . . . . . . . . . . . . . . . . . . . . . . . Installed . | . . . . . . . . . . . . . . . . . . . . . . . . . . . Triggered . | . . . . . . . . . . . . . . . . . . . . . . . . . . . Machines | -11 -10 -10 -9 -9 -9 -8 -8 -8 -8 -8 -8 -8 -8 -6 -6 -6 -6 -6 -5 -5 -5 -5 -4 -4 -4 -3 ---------- Run | Yrd Mat Min Mat Min Exi Min Mat Gar Mat Sto Gar Rec Scr Fac Ext Cet Arc Hub Fac Upp Upp Zhi Pro Fac Arm Res Machines Disabled 61 | . 2 1 1 . . . 2 7 4 3 5 . . . 2 . . 2 7 . . . . 16 6 3 Max in Single Turn 5 | . 1 1 1 . . . 1 1 1 1 1 . . . 1 . . . 5 . . . . 4 1 1 Garrison Access 1 | . . . . . . . . . . . . . . . . . . 1 . . . . . . . . Garrison Relay 9 | . . . . . . . . 6 . . 3 . . . . . . . . . . . . . . . Machines Repaired . | . . . . . . . . . . . . . . . . . . . . . . . . . . . Machines Dismantled 1 | . . . . . . . . . . . . . . . . . . . . . . . . . 1 . Machines Sabotaged . | . . . . . . . . . . . . . . . . . . . . . . . . . . . Overloaded Fab Kills . | . . . . . . . . . . . . . . . . . . . . . . . . . . . Hacking | -11 -10 -10 -9 -9 -9 -8 -8 -8 -8 -8 -8 -8 -8 -6 -6 -6 -6 -6 -5 -5 -5 -5 -4 -4 -4 -3 --------- Run | Yrd Mat Min Mat Min Exi Min Mat Gar Mat Sto Gar Rec Scr Fac Ext Cet Arc Hub Fac Upp Upp Zhi Pro Fac Arm Res Machines Accessed 104 | . 6 2 7 1 2 . 5 3 6 13 2 6 . 2 9 1 . 1 10 1 . 3 . 11 9 4 Terminals 70 | . 5 1 5 1 . . 2 3 4 10 2 6 . 1 9 1 . 1 5 . . . . 3 7 4 Fabricators 5 | . . . . . . . . . . . . . . . . . . . . . . . . 3 2 . Repair Stations 12 | . 1 . 1 . . . 2 . 1 2 . . . . . . . . 2 . . . . 3 . . Recycling Units 2 | . . . . . . . . . 1 . . . . . . . . . . . . . . 1 . . Scanalyzers 4 | . . . 1 . . . . . . . . . . 1 . . . . 1 . . . . 1 . . Garrison Access 4 | . . . . . . . 1 . . 1 . . . . . . . . 2 . . . . . . . Total Hacks 272 | . 25 3 24 3 2 . 17 5 22 31 3 17 . 4 23 2 . 3 25 1 . 12 . 27 14 9 Successful 149 | . 16 2 16 3 2 . 13 1 10 15 1 9 . 1 10 . . 2 16 1 . 12 . 14 4 1 Failed 122 | . 8 1 8 . . . 4 4 12 16 2 8 . 3 13 2 . 1 9 . . . . 13 10 8 Catastrophic 23 | . 2 . 1 . . . . . 3 1 . 2 . 1 2 1 . . 2 . . . . 3 4 1 Database Lockouts 1 | . 1 . . . . . . . . . . . . . . . . . . . . . . . . . Manual 126 | . 19 1 13 2 1 . 7 1 14 15 . 15 . 2 13 1 . 3 4 . . . . 5 7 3 Terminals 183 | . 22 2 18 3 . . 7 5 15 25 3 17 . 2 23 2 . 3 11 . . . . 5 11 9 Fabricators 9 | . . . . . . . . . . . . . . . . . . . . . . . . 6 3 . Repair Stations 36 | . 3 . 1 . . . 9 . 3 5 . . . . . . . . 6 . . . . 9 . . Recycling Units 6 | . . . . . . . . . 4 . . . . . . . . . . . . . . 2 . . Scanalyzers 17 | . . . 5 . . . . . . . . . . 2 . . . . 5 . . . . 5 . . Garrison Access 5 | . . . . . . . 1 . . 1 . . . . . . . . 3 . . . . . . . Terminal Hacks 68 | . 8 2 6 2 2 . 4 1 3 8 1 4 . . 7 . . . 4 1 . 12 . . 2 1 Record 2 | . . . 1 . 1 . . . . . . . . . . . . . . . . . . . . . Part Schematic 4 | . . . . . . . . . . . . . . . . . . . . . . 4 . . . . Robot Analysis 9 | . 1 . 1 1 . . . . . 2 . . . . . . . . . . . 4 . . . . Prototype ID Bank 14 | . 2 . 1 . . . 2 . 2 1 . 1 . . 1 . . . . . . 4 . . . . Open Door 11 | . . 1 . . . . . . . 4 . . . . 2 . . . . 1 . . . . 2 1 Level Access Points 1 | . . . . . . . . . . . . . . . . . . . 1 . . . . . . . Branch Access Points 2 | . . . 1 . . . . . . . . . . . . . . . 1 . . . . . . . Emergency Access Points 1 | . . . . . . . . 1 . . . . . . . . . . . . . . . . . . Terminal Index 1 | . 1 . . . . . . . . . . . . . . . . . . . . . . . . . Garrison Index 1 | . . . . . . . . . . 1 . . . . . . . . . . . . . . . . Alert Level 4 | . . . . . . . . . . . . 2 . . . . . . 2 . . . . . . . Unreport Threat 6 | . . . . . . . 2 . 1 . . 1 . . 2 . . . . . . . . . . . Maintenance Status 1 | . 1 . . . . . . . . . . . . . . . . . . . . . . . . . Transport Status 1 | . 1 . . . . . . . . . . . . . . . . . . . . . . . . . Hauler Manifests 3 | . 1 . 1 . . . . . . . . . . . 1 . . . . . . . . . . . Zone Layout 5 | . 1 1 1 1 . . . . . . . . . . 1 . . . . . . . . . . . Security Stations 1 | . . . . . . . . . . . 1 . . . . . . . . . . . . . . . Proto ID Catalog 1 | . . . . . 1 . . . . . . . . . . . . . . . . . . . . . Fabricator Hacks 5 | . . . . . . . . . . . . . . . . . . . . . . . . 4 1 . Network Status 3 | . . . . . . . . . . . . . . . . . . . . . . . . 2 1 . Build 2 | . . . . . . . . . . . . . . . . . . . . . . . . 2 . . Repair Station Hacks 20 | . 2 . . . . . 6 . 2 1 . . . . . . . . 5 . . . . 4 . . Scan Component 12 | . 1 . . . . . 3 . 1 1 . . . . . . . . 3 . . . . 3 . . Repair 8 | . 1 . . . . . 3 . 1 . . . . . . . . . 2 . . . . 1 . . Recycling Unit Hacks 3 | . . . . . . . . . 1 . . . . . . . . . . . . . . 2 . . Report Inventory 2 | . . . . . . . . . 1 . . . . . . . . . . . . . . 1 . . Retrieve Components 1 | . . . . . . . . . . . . . . . . . . . . . . . . 1 . . Scanalyzer 13 | . . . 4 . . . . . . . . . . 1 . . . . 5 . . . . 3 . . Insert Component 3 | . . . 1 . . . . . . . . . . . . . . . 1 . . . . 1 . . Analyze 5 | . . . 1 . . . . . . . . . . . . . . . 2 . . . . 2 . . Retrieve Study 5 | . . . 2 . . . . . . . . . . 1 . . . . 2 . . . . . . . Garrison Access Hacks 2 | . . . . . . . 1 . . 1 . . . . . . . . . . . . . . . . Unlock Access 2 | . . . . . . . 1 . . 1 . . . . . . . . . . . . . . . . Unauthorized Hacks 38 | . 6 . 6 1 . . 2 . 4 5 . 5 . . 3 . . 2 2 . . . . 1 1 . Terminals 35 | . 5 . 5 1 . . 2 . 4 4 . 5 . . 3 . . 2 2 . . . . 1 1 . Botnet 33 | . 5 . 5 1 . . 2 . 4 4 . 5 . . 3 . . 1 2 . . . . 1 . . Disrupt 1 | . . . . . . . . . . . . . . . . . . . . . . . . . 1 . Sabotage 1 | . . . . . . . . . . . . . . . . . . 1 . . . . . . . . Fabricators . | . . . . . . . . . . . . . . . . . . . . . . . . . . . Repair Stations 3 | . 1 . 1 . . . . . . 1 . . . . . . . . . . . . . . . . Patch 3 | . 1 . 1 . . . . . . 1 . . . . . . . . . . . . . . . . Recycling Units . | . . . . . . . . . . . . . . . . . . . . . . . . . . . Scanalyzers . | . . . . . . . . . . . . . . . . . . . . . . . . . . . Garrison Access . | . . . . . . . . . . . . . . . . . . . . . . . . . . . Data Cores Recovered 4 | . . . . . . . . . 1 1 . . . . . . . . 2 . . . . . . . Used 1 | . . . . . . . . . . 1 . . . . . . . . . . . . . . . . Hacking Detections 83 | . 6 1 6 1 . . 4 2 6 9 2 6 . 2 7 1 . . 10 . . . . 9 7 4 Full Trace Events 5 | . . . 1 . . . . . . . 1 . . . . 1 . . . . . . . 2 . . Feedback Events 1 | . . . . . . . . . . . . . . . . . . . . . . . . 1 . . Corruption 1 | . . . . . . . . . . . . . . . . . . . . . . . . 1 . . Feedback Blocked . | . . . . . . . . . . . . . . . . . . . . . . . . . . . Robot Schematics Acquired . | . . . . . . . . . . . . . . . . . . . . . . . . . . . Robots Built . | . . . . . . . . . . . . . . . . . . . . . . . . . . . Authchips . | . . . . . . . . . . . . . . . . . . . . . . . . . . . Time . | . . . . . . . . . . . . . . . . . . . . . . . . . . . Total Robot Build Rating . | . . . . . . . . . . . . . . . . . . . . . . . . . . . Part Schematics Acquired 6 | . . . 1 . . . . . . . . . . . . . . . 1 . . 4 . . . . Parts Built 3 | . . . . . . . . . . . . . . . . . . . . . . . . 3 . . Authchips . | . . . . . . . . . . . . . . . . . . . . . . . . . . . Time 186 | . . . . . . . . . . . . . . . . . . . . . . . . 186 . . Total Part Build Rating 25 | . . . . . . . . . . . . . . . . . . . . . . . . 25 . . Part Studies Acquired 5 | . . . 2 . . . . . . . . . . 1 . . . . 2 . . . . . . . Parts Repaired 7 | . 1 . . . . . 3 . 1 . . . . . . . . . 1 . . . . 1 . . Time 432 | . 32 . . . . . 140 . 16 . . . . . . . . . 216 . . . . 28 . . Parts Recycled . | . . . . . . . . . . . . . . . . . . . . . . . . . . . Recycled Matter . | . . . . . . . . . . . . . . . . . . . . . . . . . . . Retrieved Matter . | . . . . . . . . . . . . . . . . . . . . . . . . . . . Retrieved Components 10 | . . . . . . . . . . . . . . . . . . . . . . . . 10 . . Parts Scanalyzed 3 | . . . 1 . . . . . . . . . . . . . . . 1 . . . . 1 . . Part Schematics Acquired 2 | . . . 1 . . . . . . . . . . . . . . . 1 . . . . . . . Parts Damaged . | . . . . . . . . . . . . . . . . . . . . . . . . . . . Bothacking | -11 -10 -10 -9 -9 -9 -8 -8 -8 -8 -8 -8 -8 -8 -6 -6 -6 -6 -6 -5 -5 -5 -5 -4 -4 -4 -3 ------------ Run | Yrd Mat Min Mat Min Exi Min Mat Gar Mat Sto Gar Rec Scr Fac Ext Cet Arc Hub Fac Upp Upp Zhi Pro Fac Arm Res Used RIF Installer . | . . . . . . . . . . . . . . . . . . . . . . . . . . . Robots Hacked . | . . . . . . . . . . . . . . . . . . . . . . . . . . . Non-combat . | . . . . . . . . . . . . . . . . . . . . . . . . . . . Combat . | . . . . . . . . . . . . . . . . . . . . . . . . . . . Robot Hacks Applied . | . . . . . . . . . . . . . . . . . . . . . . . . . . . Relay Couplers Released 37 | . . . . . . . . 24 . . 12 . . . . . . 1 . . . . . . . . Machine Destruction 37 | . . . . . . . . 24 . . 12 . . . . . . 1 . . . . . . . . Fabnet Peak Effective % . | . . . . . . . . . . . . . . . . . . . . . . . . . . . Robots Rewired 20 | . . . . . . . . . . . . . . . 12 . . . . . . . . . 8 . Allies Hacked . | . . . . . . . . . . . . . . . . . . . . . . . . . . . Hacks Repelled . | . . . . . . . . . . . . . . . . . . . . . . . . . . . Allies | -11 -10 -10 -9 -9 -9 -8 -8 -8 -8 -8 -8 -8 -8 -6 -6 -6 -6 -6 -5 -5 -5 -5 -4 -4 -4 -3 -------- Run | Yrd Mat Min Mat Min Exi Min Mat Gar Mat Sto Gar Rec Scr Fac Ext Cet Arc Hub Fac Upp Upp Zhi Pro Fac Arm Res Total Allies 40 | . . . . . . . . . . 12 . . . . 15 5 . . . . . . . . 8 . Largest Group 11 | . . . . . . . . . . 11 . . . . 6 7 6 5 . . . . . . 4 . Highest-Rated Group 670 | . . . . . . . . . . 219 . . . . 303 670 574 415 . . . . . . 141 . Highest-Rated Ally 159 | . . . . . . . . . . 31 . . . . 159 159 159 96 . . . . . . 48 . Initial Warlord ECA Mod 17 | . . . . . . . . . 10 10 10 17 17 15 15 15 15 15 14 14 14 14 13 13 13 12 Total Orders . | . . . . . . . . . . . . . . . . . . . . . . . . . . . Ally Attacks 323 | . . . . . . . . . . 50 . . . . 99 63 . 78 . . . . . . 33 . Total Damage 8525 | . . . . . . . . . . 575 . . . . 1924 1995 . 3041 . . . . . . 990 . Kills 56 | . . . . . . . . . . 7 . . . . 12 5 . 26 . . . . . . 6 . Allies Corrupted 2 | . . . . . . . . . . . . . . . . . . . . . . . . . 2 . Allies Melted 1 | . . . . . . . . . . . . . . . . . . . . 1 . . . . . . Intel | -11 -10 -10 -9 -9 -9 -8 -8 -8 -8 -8 -8 -8 -8 -6 -6 -6 -6 -6 -5 -5 -5 -5 -4 -4 -4 -3 ------- Run | Yrd Mat Min Mat Min Exi Min Mat Gar Mat Sto Gar Rec Scr Fac Ext Cet Arc Hub Fac Upp Upp Zhi Pro Fac Arm Res Active Infowar (turns) 7663 | 20 29 . . . . . . . . . . . . . . . . . . 692 1448 254 568 2349 2303 . IFF 3000 | . . . . . . . . . . . . . . . . . . . . 692 1448 254 568 38 . . Seismic 49 | 20 29 . . . . . . . . . . . . . . . . . . . . . . . . . Jamming 4673 | . . . . . . . . . . . . . . . . . . . . . 59 . . 2311 2303 . Robot Analysis Total 9 | . 1 . 1 1 . . . . . 2 . . . . . . . . . . . 4 . . . . Derelict Logs Recovered 2 | . . . . . . . . . . . . . . . . . . . . . 1 . 1 . . . Drone Launches . | . . . . . . . . . . . . . . . . . . . . . . . . . . . Drone Recoveries . | . . . . . . . . . . . . . . . . . . . . . . . . . . . Exploration | -11 -10 -10 -9 -9 -9 -8 -8 -8 -8 -8 -8 -8 -8 -6 -6 -6 -6 -6 -5 -5 -5 -5 -4 -4 -4 -3 ------------- Run | Yrd Mat Min Mat Min Exi Min Mat Gar Mat Sto Gar Rec Scr Fac Ext Cet Arc Hub Fac Upp Upp Zhi Pro Fac Arm Res Turns Passed 31550 | 75 1196 505 727 101 270 241 1473 1904 1711 1618 1281 1420 1279 643 2511 531 62 328 3631 848 1506 254 568 3380 2671 816 Spaces Moved 15573 | 32 765 252 442 105 213 182 637 757 706 716 540 656 623 311 1280 205 39 184 1665 488 828 143 264 1394 1190 956 Core 69 | . . 69 . . . . . . . . . . . . . . . . . . . . . . . . Treads 4000 | 25 13 . 81 . . . . 311 91 10 . 6 . . 2 36 . . 428 488 828 143 264 1274 . . Legs 1192 | 7 . 17 . . . . . . . . . . . . . . . . . . . . . 120 1048 . Wheels 9214 | . 752 166 361 105 213 182 637 446 615 706 540 650 623 311 1278 169 39 184 1237 . . . . . . . Hover 1098 | . . . . . . . . . . . . . . . . . . . . . . . . . 142 956 Flight . | . . . . . . . . . . . . . . . . . . . . . . . . . . . Fastest Speed 45 | 120 100 80 85 85 85 130 130 140 145 130 145 205 205 126 126 160 160 160 145 164 164 164 164 164 45 45 Average Speed 154 | 151 110 131 114 85 125 130 141 197 192 151 175 205 205 145 152 174 160 160 158 164 164 164 164 167 157 53 Slowest Speed 545 | 160 160 200 240 85 130 130 220 238 238 545 205 305 205 155 480 240 160 160 250 164 164 164 164 260 251 146 Overloaded Moves . | . . . . . . . . . . . . . . . . . . . . . . . . . . . Propulsion Burnouts . | . . . . . . . . . . . . . . . . . . . . . . . . . . . Robots Hopped . | . . . . . . . . . . . . . . . . . . . . . . . . . . . Potential Cave-ins 2 | . . . . . . . . . . . . . . . . . . . . . . . . . . 2 Cave-ins Triggered . | . . . . . . . . . . . . . . . . . . . . . . . . . . . Teleports 1 | . . . . . . . . . . . . . . . . . . . . . . . . 1 . . Exploration Rate (%) 54 | 4 98 60 35 19 60 56 56 79 46 85 63 96 54 11 90 68 67 16 41 59 87 60 38 38 47 26 Regions Visited 26 Branch Regions 16 Pre-discovered Areas 5 | . . . . . 1 . . . . 1 . . . . . . . . . 1 1 . 1 . . . Known Exits Taken 6 | . . . 1 . . . 1 . . 1 . . . . . . . . 1 . . . 1 . 1 . Unknown Exits Taken 18 | 1 1 1 . 1 1 1 . . 1 . . 1 1 1 1 1 1 1 . 1 1 1 . 1 . . Scrap Searched 9 | . . 1 . . . 1 . . . . . . 3 . . . . . . . 4 . . . . . Spaces Dug 75 | . . 21 . . . . 5 . 1 2 . . . . . . . 1 2 . . . . 12 31 . Terrain Destroyed 827 | . . 95 31 . . . 29 4 1 15 68 . . . 32 3 . 8 136 20 6 . 28 232 66 53 Melee . | . . . . . . . . . . . . . . . . . . . . . . . . . . . Projectile 253 | . . . . . . . 5 1 1 15 . . . . 32 3 . 8 87 6 6 . 11 42 24 12 AOE 549 | . . 95 31 . . . 24 3 . . 68 . . . . . . . 49 14 . . 17 175 32 41 Terrain Rammed . | . . . . . . . . . . . . . . . . . . . . . . . . . . . Walls Destroyed . | . . . . . . . . . . . . . . . . . . . . . . . . . . . Machines Disabled . | . . . . . . . . . . . . . . . . . . . . . . . . . . . Actions | -11 -10 -10 -9 -9 -9 -8 -8 -8 -8 -8 -8 -8 -8 -6 -6 -6 -6 -6 -5 -5 -5 -5 -4 -4 -4 -3 --------- Run | Yrd Mat Min Mat Min Exi Min Mat Gar Mat Sto Gar Rec Scr Fac Ext Cet Arc Hub Fac Upp Upp Zhi Pro Fac Arm Res Total 20835 | 46 981 375 577 114 216 184 1024 1007 939 1121 804 690 626 458 1646 340 39 198 2324 521 938 163 355 2184 1753 1212 Wait 2721 | . 93 73 59 . . . 232 118 121 280 153 2 . 95 31 69 . 5 432 14 77 . 60 529 153 125 Move 15550 | 31 764 251 441 104 212 181 637 756 705 716 539 655 622 310 1279 204 38 183 1664 487 827 142 263 1394 1189 956 Hop . | . . . . . . . . . . . . . . . . . . . . . . . . . . . Pick Up 205 | 1 10 3 9 2 2 1 17 7 17 7 4 3 2 9 17 8 . . 18 2 3 2 2 22 27 10 Fast Attach 141 | 2 4 5 5 . . . 7 1 4 2 1 2 . 4 6 6 . . 15 1 1 8 1 17 28 21 Attach 112 | 1 2 5 . . . . 5 2 . 5 2 2 . 5 9 4 . . 6 1 4 1 3 15 31 9 Detach 79 | 1 1 1 2 . . . 3 1 1 3 2 2 . 2 4 4 . . 1 . 1 1 . 12 17 20 Swap 272 | . 12 1 9 2 1 . 20 15 10 16 12 1 . 5 15 9 . 1 14 5 10 1 6 58 38 11 Drop 272 | 3 17 3 7 4 1 1 18 9 19 8 6 4 2 8 23 15 1 . 25 2 1 8 1 27 36 23 Fire 1114 | 7 78 33 45 2 . 1 85 84 62 73 45 19 . 20 90 21 . 9 149 9 14 . 19 108 104 37 Melee . | . . . . . . . . . . . . . . . . . . . . . . . . . . . Ram 3 | . . . . . . . . . . . . . . . . . . . . . . . . . 3 . Kick 1 | . . . . . . . . . . . . . . . . . . . . . . . . 1 . . Crush 2 | . . . . . . . . . . 1 . . . . . . . . . . . . . 1 . . Escape Stasis 102 | . . . . . . . . 14 . 8 40 . . . 40 . . . . . . . . . . . Rewire 253 | . . . . . . . . . . 2 . . . . 132 . . . . . . . . . 119 . Trap . | . . . . . . . . . . . . . . . . . . . . . . . . . . . Miscellaneous 8 | . . . . . . . . . . . . . . . . . . . . . . . . . 8 . Route ------- -11/Scrapyard -10/Materials (discovered 4 exits: *Mat x3 / *Min) -10/Mines -9/Materials (discovered 2 exits: *Min x2) -9/Mines (discovered 2 exits: *Exi / [*Zio]) -9/Exiles -8/Mines -8/Materials (discovered 2 exits: *Sto / Gar) -8/Garrison (discovered 3 exits: *Mat x3) -8/Materials -8/Storage (discovered 2 exits: [*Fac] / Gar) -8/Garrison -8/Recycling (discovered 2 exits: *Fac / *Scr) -8/Scraptown -6/Factory -6/Extension (discovered 2 exits: *Fac / *Cet) -6/Cetus (discovered 2 exits: *Fac / [*Arc]) -6/Archives -6/Hub_04(d) (discovered 2 exits: *Fac x2) -5/Factory (discovered 6 exits: *Fac x4 / *Upp x2) -5/Upper Caves -5/Upper Caves (discovered 2 exits: *Fac / *Zhi) -5/Zhirov -4/Proximity Caves -4/Factory (discovered 2 exits: *Res / *Arm) -4/Armory -3/Research (discovered 2 exits: [*Res] / [*Qua]) History --------- Turn | Location | Event 13 | -11/Scrapyard | Discovered new exit (range 3) 76 | -11/Scrapyard | Entered Materials 300 | -10/Materials | Build established: Mutant 408 | -10/Materials | Discovered new exit (range 7) 507 | -10/Materials | Discovered new exit (range 5) 547 | -10/Materials | Repaired Particle Gun 614 | -10/Materials | Central database locked down 803 | -10/Materials | Discovered new exit (range 16) 961 | -10/Materials | Build established: Scavenger-Mutant 989 | -10/Materials | Discovered new exit (range 15) 1212 | -10/Materials | Core integrity fell below 50% 1272 | -10/Materials | Entered Mines 1454 | -10/Mines | Assembled infested the area 1492 | -10/Mines | Received a Rocket Launcher from a helpful Derelict 1581 | -10/Mines | Core integrity fell below 20% 1611 | -10/Mines | Lost 5 parts (1p2n2w) 1705 | -10/Mines | Met a Derelict shopkeep closing up shop 1773 | -10/Mines | Discovered new exit (range 4) 1777 | -10/Mines | Entered Materials 1777 | -9/Materials | Evolved 2 slots: Propulsion x1, Weapon x1 2148 | -9/Materials | Discovered new exit (range 9) 2233 | -9/Materials | Build established: Scavenger-Gunner 2308 | -9/Materials | Identified exit to Mines 2504 | -9/Materials | Entered Mines 2505 | -9/Mines | A Derelict revealed a hidden shortcut to a safe place 2513 | -9/Mines | Met a Derelict bent on vengeance 2601 | -9/Mines | Deemed a non-threat by the Exiles lab entrance 2602 | -9/Mines | Discovered new exit (range 5) 2605 | -9/Mines | Entered Exiles 2631 | -9/Exiles | Met 8R-AWN 2651 | -9/Exiles | Met EX-HEX 2687 | -9/Exiles | Met EX-BIN 2705 | -9/Exiles | Aligned with FarCom system 2706 | -9/Exiles | Given EX-Vault access code 2736 | -9/Exiles | Opened EX-Vault 2745 | -9/Exiles | Found PSU Rigger 2775 | -9/Exiles | Warned to stay clear of 0b10 Research branches 2812 | -9/Exiles | Met EX-DEC 2818 | -9/Exiles | Learned location of Zion (-7) 2864 | -9/Exiles | Discovered new exit (range 10) 2875 | -9/Exiles | Left Exiles lab with PSU Rigger 2875 | -9/Exiles | Entered Mines 3099 | -8/Mines | Discovered new exit (range 11) 3116 | -8/Mines | Entered Materials 3116 | -8/Materials | Evolved 2 slots: Utility x2 3163 | -8/Materials | Build established: Scavenger-Skirmisher 4130 | -8/Materials | Garrison activated, responded to threat 4133 | -8/Materials | Discovered new exit (range 11) 4378 | -8/Materials | Repaired Imp. Assault Rifle 4431 | -8/Materials | Repaired Imp. Assault Rifle 4470 | -8/Materials | Repaired Arm. Treads 4513 | -8/Materials | Garrison activated, responded to threat 4589 | -8/Materials | Identified exit to Garrison 4589 | -8/Materials | Entered Garrison 4653 | -8/Garrison | Triggered checkpoint 4718 | -8/Garrison | Garrison Relay disabled 4919 | -8/Garrison | Triggered checkpoint 4933 | -8/Garrison | Triggered checkpoint 5053 | -8/Garrison | Discovered new exit (range 9) 5090 | -8/Garrison | Build established: Scavenger-Tank 5117 | -8/Garrison | Triggered checkpoint 5198 | -8/Garrison | Garrison Relay disabled 5597 | -8/Garrison | Triggered checkpoint 5659 | -8/Garrison | Garrison Relay disabled 5698 | -8/Garrison | Discovered new exit (range 8) 5749 | -8/Garrison | Garrison Relay disabled 5845 | -8/Garrison | Garrison Relay disabled 6057 | -8/Garrison | Triggered checkpoint 6162 | -8/Garrison | Discovered new exit (range 12) 6224 | -8/Garrison | Triggered checkpoint 6389 | -8/Garrison | Garrison Relay disabled 6493 | -8/Garrison | Entered Materials 6954 | -8/Materials | Build established: Scavenger-Skirmisher 7270 | -8/Materials | Build established: Skirmisher 7309 | -8/Materials | Discovered new exit (range 13) 7413 | -8/Materials | Repaired Autogun 7693 | -8/Materials | First assault squad dispatched 8204 | -8/Materials | Entered Storage 8308 | -8/Storage | Core integrity fell below 50% 8502 | -8/Storage | Assisted by bots powering up and referring to "LRC-V3" 8643 | -8/Storage | Found Prototype Processor 8643 | -8/Storage | Identified Exp. Targeting Computer 8796 | -8/Storage | Discovered new exit (range 15) 8799 | -8/Storage | Build established: Commander-Skirmisher 8910 | -8/Storage | Met a pair of Derelict thieves 8939 | -8/Storage | Learned location of Armory (-4) 8992 | -8/Storage | Lost 11 allies 9255 | -8/Storage | Build established: Skirmisher 9822 | -8/Storage | Identified exit to Garrison 9822 | -8/Storage | Entered Garrison 9882 | -8/Garrison | Triggered checkpoint 9944 | -8/Garrison | Garrison Relay disabled 10356 | -8/Garrison | Triggered checkpoint 10444 | -8/Garrison | Triggered checkpoint 10511 | -8/Garrison | Learned Recycling security intel 10562 | -8/Garrison | Garrison Relay disabled 10662 | -8/Garrison | Triggered checkpoint 10818 | -8/Garrison | Triggered checkpoint 10995 | -8/Garrison | Garrison Relay disabled 11077 | -8/Garrison | Discovered new exit (range 13) 11103 | -8/Garrison | Entered Recycling 11541 | -8/Recycling | Build established: Scavenger-Skirmisher 11986 | -8/Recycling | Discovered new exit (range 11) 12473 | -8/Recycling | Scanned before Scraplab entrance 12502 | -8/Recycling | Entered Scraplab 12519 | -8/Recycling | Discovered new exit (range 3) 12523 | -8/Recycling | Entered Scraptown 12523 | -8/Scraptown | System corruption cleaned by C-Scrubber 12823 | -8/Scraptown | Build established: Scavenger-Gunner 12828 | -8/Scraptown | Visited Symbiants 12850 | -8/Scraptown | Visited Comm Corps 12955 | -8/Scraptown | Visited Cyclists 13004 | -8/Scraptown | Visited Red Mages 13139 | -8/Scraptown | Visited Spacefarers 13166 | -8/Scraptown | Visited IN-MT5's Study 13599 | -8/Scraptown | Visited The Evicted 13709 | -8/Scraptown | Discovered new exit (range 13) 13802 | -8/Scraptown | Entered Factory 13802 | -6/Factory | Evolved 4 slots: Propulsion x1, Utility x3 14095 | -6/Factory | Build established: Scavenger-Skirmisher 14397 | -6/Factory | Spotted B-75 Beast 14426 | -6/Factory | Discovered new exit (range 16) 14445 | -6/Factory | Entered Extension 14922 | -6/Extension | Watched by a mysterious "MATRIX" hacker. 15207 | -6/Extension | Lost 3 allies 15501 | -6/Extension | Build established: Scavenger-Tank 15590 | -6/Extension | Lost 4 parts (1n1u2w) 15695 | -6/Extension | Spotted B-75 Beast 15720 | -6/Extension | Disrupted transfer network 15728 | -6/Extension | Allies destroyed B-75 Beast 15750 | -6/Extension | Spotted B-75 Beast 15782 | -6/Extension | Destroyed B-75 Beast 15808 | -6/Extension | Lost 3 parts (1n2w) 15908 | -6/Extension | Rescued A7 15964 | -6/Extension | Rescued a captive Derelict 15965 | -6/Extension | Rescued a captive Derelict 16866 | -6/Extension | Discovered new exit (range 16) 16868 | -6/Extension | Discovered new exit (range 15) 16956 | -6/Extension | Entered Cetus 16956 | -6/Cetus | Accompanied by 5 allies (A7) 16961 | -6/Cetus | Acquired a Cetus Manufacturing Module code from A7 16979 | -6/Cetus | Spotted Cetus Guard 16979 | -6/Cetus | Spotted Cetus Guard 16981 | -6/Cetus | Spotted Cetus Guard 16982 | -6/Cetus | Spotted Cetus Guard 16987 | -6/Cetus | Allies destroyed Cetus Guard 16987 | -6/Cetus | Attached CPS modules to Cetus Guard. 17002 | -6/Cetus | Destroyed Cetus Guard 17009 | -6/Cetus | Allies destroyed Cetus Guard 17012 | -6/Cetus | Destroyed Cetus Guard 17038 | -6/Cetus | Lost 3 allies 17132 | -6/Cetus | Started Cetus Manufacturing Module 17157 | -6/Cetus | Manufactured an Enhanced Grunt 17182 | -6/Cetus | Manufactured an Enhanced Grunt 17207 | -6/Cetus | Manufactured an Enhanced Grunt 17232 | -6/Cetus | Manufactured an Enhanced Grunt 17257 | -6/Cetus | Manufactured an Enhanced Grunt 17265 | -6/Cetus | Discovered new exit (range 16) 17296 | -6/Cetus | Spotted Cetus Guard 17296 | -6/Cetus | Spotted Cetus Guard 17298 | -6/Cetus | Spotted Cetus Guard 17299 | -6/Cetus | Spotted Cetus Guard 17300 | -6/Cetus | Attached CPS modules to Cetus Guard. 17303 | -6/Cetus | Attached CPS modules to Cetus Guard. 17306 | -6/Cetus | Destroyed Cetus Guard 17313 | -6/Cetus | Destroyed Cetus Guard 17319 | -6/Cetus | Destroyed Cetus Guard 17329 | -6/Cetus | Destroyed Cetus Guard 17342 | -6/Cetus | Found Prototype Device 17342 | -6/Cetus | Identified Exp. Thermal Shield 17368 | -6/Cetus | Discovered new exit (range 15) 17388 | -6/Cetus | Met Revision 17 17487 | -6/Cetus | Entered Archives 17487 | -6/Archives | Accompanied by 6 allies (A7) 17507 | -6/Archives | Met Zhirov 17513 | -6/Archives | Reinforcements dispatched to Archives 17522 | -6/Archives | Discovered new exit (range 15) 17549 | -6/Archives | Entered Hub_04(d) 17549 | -6/Hub_04(d) | Accompanied by 5 allies 17559 | -6/Hub_04(d) | Discovered new exit (range 16) 17592 | -6/Hub_04(d) | Discovered new exit (range 15) 17877 | -6/Hub_04(d) | Entered Factory 17877 | -5/Factory | Evolved 2 slots: Propulsion x2 19210 | -5/Factory | Identified exit to Factory 19977 | -5/Factory | First assault squad dispatched 20679 | -5/Factory | System corruption reached 10% 20747 | -5/Factory | Destroyed 9 combat bots 21062 | -5/Factory | Repaired Centrium Heavy Treads 21232 | -5/Factory | Identified exit to Upper Caves 21443 | -5/Factory | High security lockdown imminent 21508 | -5/Factory | Entered Upper Caves 21514 | -5/Upper Caves | Met a Warlord Commander 21515 | -5/Upper Caves | Learned location of Warlord (-4) 21516 | -5/Upper Caves | Warlord Commander delivered Encrypted Comm Array 21563 | -5/Upper Caves | Encountered a Warlord checkpoint 21970 | -5/Upper Caves | Build established: Tank 22338 | -5/Upper Caves | Discovered new exit (range 12) 22356 | -5/Upper Caves | Entered another Upper Caves area 22466 | -5/Upper Caves | Spotted B-75 Beast 22504 | -5/Upper Caves | Discovered exit to Factory (range 12) 22631 | -5/Upper Caves | Destroyed B-75 Beast 22647 | -5/Upper Caves | Lost 3 parts (1u2w) 22868 | -5/Upper Caves | Build established: Scavenger-Tank 23301 | -5/Upper Caves | Attracted the attention of an 0b10 checkpoint 23594 | -5/Upper Caves | Build established: Tank 23635 | -5/Upper Caves | Discovered new exit (range 14) 23839 | -5/Upper Caves | Attracted the attention of an 0b10 outpost 23862 | -5/Upper Caves | Entered Zhirov 23865 | -5/Zhirov | Discovered new exit (range 3) 23968 | -5/Zhirov | Found Alien Artifact 23968 | -5/Zhirov | Identified Integrated Dissipator 23968 | -5/Zhirov | Installed Integrated Dissipator, increased core heat dissipation (+20) 23991 | -5/Zhirov | Found Alien Artifact 24116 | -5/Zhirov | Entered Proximity Caves 24119 | -4/Proximity Caves | Spotter reported a threat 24119 | -4/Proximity Caves | Spotter reported a threat 24178 | -4/Proximity Caves | Attracted the attention of an 0b10 checkpoint 24197 | -4/Proximity Caves | Core integrity fell below 50% 24454 | -4/Proximity Caves | Spotter reported a threat 24515 | -4/Proximity Caves | Build established: Scavenger-Tank 24668 | -4/Proximity Caves | Discovered exit to Factory (range 9) 24684 | -4/Proximity Caves | Entered Factory 24684 | -4/Factory | Evolved 2 slots: Power x1, Weapon x1 24934 | -4/Factory | Search patrols dispatched 25001 | -4/Factory | Repaired Arm. Medium Treads 25184 | -4/Factory | Search patrols dispatched 25327 | -4/Factory | Build established: Tank 25434 | -4/Factory | First assault squad dispatched 25713 | -4/Factory | Found Unknown Protection 25802 | -4/Factory | Fabricated Lgt. Quantum Reactor (x2) 26110 | -4/Factory | Build established: Gunner 26529 | -4/Factory | Fabricated Hvy. Siege Treads (x1) 26659 | -4/Factory | System corruption reached 10% 26694 | -4/Factory | Destroyed 10 combat bots 26892 | -4/Factory | Discovered new exit (range 12) 27400 | -4/Factory | Build established: Tank 27679 | -4/Factory | Identified Transdimensional Reconstructor 27679 | -4/Factory | Warped through subspace 27891 | -4/Factory | Build established: Scavenger-Tank 28036 | -4/Factory | Discovered new exit (range 11) 28064 | -4/Factory | Entered Armory 28094 | -4/Armory | Lost 3 parts (2u1w) 28343 | -4/Armory | Build established: Scavenger-Gunner 28445 | -4/Armory | Lost 3 allies 28539 | -4/Armory | Lost 3 parts (1n2w) 28643 | -4/Armory | Found Tesla Bomb Launcher 29222 | -4/Armory | Found Fusion Bomb Launcher 29225 | -4/Armory | Found Fusion Bomb Launcher 29814 | -4/Armory | First assault squad dispatched 29885 | -4/Armory | Lost 4 parts (1p2n1w) 29935 | -4/Armory | Lost 4 allies 30232 | -4/Armory | Unchained authorized (V4-D3R) 30272 | -4/Armory | Exiles provided nearest exit location to -3/Research 30474 | -4/Armory | Core integrity fell below 50% 30530 | -4/Armory | Lost 11 parts (2p3n2u4w) 30666 | -4/Armory | Core integrity fell below 20% 30735 | -4/Armory | Entered Research 30735 | -3/Research | Evolved 2 slots: Utility x2 30736 | -3/Research | Lost 13 parts (2p4u7w) 30872 | -3/Research | Lost 3 parts (2u1w) 30935 | -3/Research | Revision forces began assault on 0b10 30942 | -3/Research | Discovered new exit (range 7) 30966 | -3/Research | Met up with Revision 17++ 31039 | -3/Research | Found Prototype Launcher 31039 | -3/Research | Identified Smartbomb Launcher 31267 | -3/Research | Found Prototype Processor 31267 | -3/Research | Identified Exp. Terrain Scan Processor 31270 | -3/Research | Found Exp. Terrain Scan Processor 31412 | -3/Research | Discovered new exit (range 7) 31435 | -3/Research | Research terminal network offline 31524 | -3/Research | Found Unknown Device 31532 | -3/Research | Identified Quantum Capacitor 31533 | -3/Research | Spotted Striker 31537 | -3/Research | Destroyed Striker 31551 | -3/Research | Self-destructed Last Messages --------------- 31528_ H-77 Assassin destroyed. 31531_ Dropped Graphene Brace. 31531_ Dropped Imp. Phase Shifter. 31532_ Identified Quantum Capacitor. 31533_ Acquired Graphene Brace. 31534_ Knocked back. 31535_ Acquired Imp. Phase Shifter. 31536_ Knocked back. 31537_ Striker system terminally corrupted. 31537_ Prototype Device fried. 31537_ Prototype Piercing Weapon fried. 31538_ Slug penetrates Wall. 31539_ Acquired 5 matter. 31544_ C-45 Heavy ARC bursts open, deploying its payload. 31544_ S-43 Plague unfolds itself. 31546_ Xenon Bombardment Thruster fried. 31546_ S-43 Plague destroyed. 31546_ Slug penetrates Wall. 31550_ Penetrated by Slug. Map ----- +----------------------------------------------------+ | ????????????? # # ##= % # % # # | | ???????????? # # ## != %+ + = # | | ???????????? # # =% # # # | | ??????????? # # # | | ??????????? / = # # # | | ??????????? % ######## # # | | ?????????? #! *%% ! !###????# ######## | | ???????%! !%==%!=[%!%== #????# #??????###### | | ????????? % %#%%]= !#g #????# ############# | | ????????? #!#????# % | | ????????? *%*%* #=#????# | | ????????? ! g ## ## #????# | | ????????? = = ! [[#=#????#######+######### | | ?????????? # g ! !# #???????# #???? | | ??????????????# # # #???????# #???? | | ??????????????# ???# !# #???????#"" #???? | | ???????????????????# # #???????#"" #???? | | ???????????????????# #+##??????#"T #???? | | ??????????????# #####"## ???????#"" #???? | | ??????????????# s ]!*/ ???????#"" #???? | | ??????????????# ########h## d??????# #???? | | ???????????????????????#s## ???????# #???? | | ???????????????????????#h## ??????##########???? | | ???????????????????????# ##= ???????????????????? | | ???????????????????????# #####+###???????????????? | | ???????????????????????# @ *%%= s" ??????????? | | ???????????????????????#######%###???????????????? | | ?????????????????????????????????????????????????? | | ?????????????????????????????????????????????????? | | ?????????????????????????????????????????????????? | | ?????????????????????????????????????????????????? | | ?????????????????????????????????????????????????? | | ?????????????????????????????????????????????????? | | ?????????????????????????????????????????????????? | | ?????????????????????????????????????????????????? | | ?????????????????????????????????????????????????? | | ?????????????????????????????????????????????????? | | ?????????????????????????????????????????????????? | | ?????????????????????????????????????????????????? | | ?????????????????????????????????????????????????? | | ?????????????????????????????????????????????????? | | ?????????????????????????????????????????????????? | | ?????????????????????????????????????????????????? | | ?????????????????????????????????????????????????? | | ?????????????????????????????????????????????????? | | ?????????????????????????????????????????????????? | | ?????????????????????????????????????????????????? | | ?????????????????????????????????????????????????? | | ?????????????????????????????????????????????????? | | ?????????????????????????????????????????????????? | +----------------------------------------------------+ Best States ------------- Heat Dissipation 99 Energy Generation 41 Energy Capacity 715 Matter Stores 300 Matter Capacity 300 Sight Range 16 Terrain Scan Density 10 Jamming Range 14 Base Temperature (-) 200 Armor Coverage 900 Resistance: TH 30 Propulsion Shielding 90 Utility Shielding 66 Point Defense Rating 80 Phase Shifting 10 Evasion (%) 66 Targeting Accuracy 14 Target Analysis 6 Core Analysis 9 Armor Integrity Analysis 40 Recoil Reduction 6 Matter Filtering 50 Salvage Targeting 2 Offensive Hacking 14 Defensive Hacking 10 Authchip Count 2 Item Schematics ----------------- Hpw. Tractor Beam | -9/Materials | Scanalyzed Quantum Reactor | -5/Factory | Scanalyzed Assault Drone Bay | -5/Zhirov | Free Exp. Heat Sink | -5/Zhirov | Free Exp. Optical Array | -5/Zhirov | Free Imp. Arc Thrower | -5/Zhirov | Free Robot Schematics ------------------ None Fabricated ------------ Lgt. Quantum Reactor | x2 | -4/Factory | Preloaded Hvy. Siege Treads | x1 | -4/Factory | Preloaded Repaired ---------- Particle Gun | 28% | -10/Materials Imp. Assault Rifle | 27% | -8/Materials Imp. Assault Rifle | 33% | -8/Materials Arm. Treads | 70% | -8/Materials Autogun | 39% | -8/Materials Centrium Heavy Treads | 26% | -5/Factory Arm. Medium Treads | 35% | -4/Factory Studied --------- Wheel | -9/Materials | Hacked Grenade Launcher | -9/Materials | Hacked Lrn. Missile Launcher | -6/Factory | Hacked Hyp. Coil Gun | -5/Factory | Hacked Hyp. Gauss Rifle | -5/Factory | Hacked Alien Tech Used ----------------- Integrated Dissipator Transdimensional Reconstructor Achievements -------------- None Challenges ------------ None Game ------ Seed DamperInsulationMallet Manual? 0 Play Time 04:46:39 Cumulative 152.8 hours Start 2026.04.15 @ 15:25:59 End 2026.04.16 @ 02:31:14 Sessions 3 Manual Loads 0 Difficulty Rogue Special Mode None Game No. 101 Rogue 101 Adventurer 0 Explorer 0 Win Type - Total 5 Types 3/0/1/1/0/0/0/0/0/0 Lore% 62 Gallery% 53 Achievement% 48 Wizard Run 0 Options --------- Layout 2 ASCII 0 Keyboard 1 Movement Arrows Keybinds 0 Fullscreen 2 Font 24/Terminus Map View 50x44 Zoom Use 0% Tactical HUD 1 Map Filters NONE Filters NONE Steam 1 RUN: 70a9e1ac-9c2a-4e27-81e5-acc4d66e3f27